bitfinex-derivatives/quotes_SOLF0:USTF0_20251209
["timestamp","ask_amount","ask_price","bid_price","bid_amount"]
[1765322103833,3.07806293,137.93,137.9,68.1459]
[1765322104033,0.04806293,137.93,137.91,3.3]
[1765322105542,0.04806293,137.93,137.91,9.8254]
[1765322105745,0.04806293,137.93,137.92,3.3]
[1765322105945,3.03,137.99,137.92,3.3]
[1765322106241,104.4813,137.99,137.91,3.3]
[1765322106443,3.03,137.98,137.91,3.3]
[1765322106644,3.03,137.94,137.9,64.92]
[1765322106944,3.07895576,137.93,137.91,0.04806293]
[1765322107138,3.07853777,137.93,137.85,61.62]
[1765322107341,9.5559,137.9,137.85,64.92]
[1765322107547,3.03,137.93,137.86,3.3]
[1765322108149,0.0532132,137.91,137.86,3.3]
[1765322109146,6.5261,137.9,137.86,64.92]
[1765322109345,6.5261,137.9,137.87,3.3]
[1765322110052,3.0832132,137.91,137.87,3.3]
[1765322110250,0.0532132,137.91,137.87,3.3]
[1765322111451,6.5788132,137.91,137.87,3.3]
[1765322112957,0.0532132,137.91,137.87,3.3]
[1765322113540,6.5788132,137.91,137.87,3.3]
[1765322113751,0.0532132,137.91,137.87,3.26]
[1765322115446,0.0532132,137.91,137.87,9.7873]
[1765322115648,3.1232132,137.91,137.87,3.26]
[1765322115858,3.1232132,137.91,137.86,61.62]
[1765322116040,9.5959,137.9,137.86,64.88]
[1765322117749,3.07,137.9,137.86,64.88]
[1765322118152,0.0532132,137.91,137.87,3.26]
[1765322118453,9.6487132,137.91,137.87,3.26]
[1765322119149,3.07,137.9,137.85,6.5282]
[1765322119356,3.07,137.89,137.82,3.26]
[1765322119541,0.0486251,137.87,137.82,9.7896]
[1765322119742,0.0486251,137.87,137.83,3.26]
[1765322119947,3.07,137.94,137.84,3.26]
[1765322120152,3.07,137.94,137.85,3.26]
[1765322120947,6.57967284,137.91,137.88,0.05126904]
[1765322121150,6.57967284,137.91,137.88,3.31126904]
[1765322121151,9.64967284,137.91,137.88,3.31126904]
[1765322123758,3.07,137.9,137.88,0.05126904]
[1765322124152,9.5959,137.9,137.88,0.05126904]
[1765322125656,6.5259,137.9,137.88,3.31126904]
[1765322125965,0.05417284,137.91,137.88,3.31126904]
[1765322126761,6.57957284,137.91,137.88,3.31126904]
[1765322127459,0.05417284,137.91,137.88,3.31126904]
[1765322128062,6.5264,137.89,137.88,0.05126904]
[1765322128358,101.5396,137.87,137.82,3.26]
[1765322128659,101.5476,137.86,137.79,3.26]
[1765322129460,6.529,137.84,137.79,3.26]
[1765322129657,0.05097596,137.83,137.79,3.26]
[1765322130663,0.05097596,137.83,137.8,3.33]
[1765322131562,0.05097596,137.83,137.81,3.33]
[1765322132865,0.05097596,137.83,137.82,3.33]
[1765322135963,0.05097596,137.83,137.81,3.33]
[1765322137467,3.10097596,137.83,137.8,61.66]
[1765322137968,3.10097596,137.83,137.8,64.99]
[1765322138368,0.05097596,137.83,137.81,3.33]
[1765322140858,0.05097596,137.83,137.8,71.5206]
[1765322141367,0.05097596,137.83,137.81,3.33]
[1765322143271,0.05097596,137.83,137.8,64.99]
[1765322143772,0.05097596,137.83,137.81,3.33]
[1765322144467,3.10097596,137.83,137.78,6.5311]
[1765322144673,3.10097596,137.83,137.79,3.33]
[1765322145058,3.10097596,137.83,137.8,3.33]
[1765322146373,3.10097596,137.83,137.78,65.01]
[1765322146582,3.10097596,137.83,137.79,3.33]
[1765322147066,0.05097596,137.83,137.81,3.33]
[1765322148472,0.05097596,137.83,137.81,9.8599]
[1765322148977,0.05097596,137.83,137.82,3.33]
[1765322149781,0.05097596,137.83,137.82,9.8597]
[1765322149979,8.44241203,137.93,137.84,3.33]
[1765322150280,6.5254,137.91,137.87,3.33]
[1765322150577,3.05,137.96,137.87,3.33]
[1765322150773,16.98956501,137.98,137.9,6.5258]
[1765322150977,3.05,137.94,137.86,3.33]
[1765322151478,3.05,137.9,137.83,3.33]
[1765322152081,0.05449454,137.88,137.83,3.33]
[1765322152280,6.5275,137.87,137.83,3.33]
[1765322152673,0.05449454,137.88,137.83,9.859]
[1765322152877,0.05449454,137.88,137.84,3.33]
[1765322153372,0.05449454,137.88,137.84,9.8586]
[1765322153666,0.05449454,137.88,137.85,3.33]
[1765322156293,0.05449454,137.88,137.86,3.33]
[1765322156775,3.10449454,137.88,137.84,3.33]
[1765322157084,0.05549764,137.87,137.84,3.33]
[1765322159087,3.31549764,137.87,137.84,3.33]
[1765322159281,3.26,137.86,137.83,61.68]
[1765322160180,3.26,137.84,137.81,3.35]
[1765322160375,3.30750828,137.84,137.79,3.35]
[1765322162385,0.04750828,137.84,137.8,3.35]
[1765322163282,3.30750828,137.84,137.8,3.35]
[1765322163786,0.04750828,137.84,137.8,3.35]
[1765322166591,0.04750828,137.84,137.83,3.35]
[1765322168890,3.26,137.9,137.86,3.35]
[1765322169793,0.05036262,137.89,137.87,0.04993241]
[1765322169991,0.05036262,137.89,137.87,3.39993241]
[1765322171292,3.32036262,137.89,137.87,0.04993241]
[1765322171988,9.84676262,137.89,137.87,0.04993241]
[1765322172188,0.05036262,137.89,137.87,3.10993241]
[1765322172892,0.05036262,137.89,137.87,9.63713241]
[1765322173087,0.05036262,137.89,137.87,3.10993241]
[1765322173392,3.32036262,137.89,137.87,0.04993241]
[1765322173792,3.27,137.88,137.87,0.04993241]
[1765322173994,3.27,137.88,137.83,61.68]
[1765322175196,3.27,137.86,137.83,64.74]
[1765322175392,3.31742106,137.86,137.83,64.74]
[1765322175593,0.04742106,137.86,137.83,64.74]
[1765322176094,0.04742106,137.86,137.84,3.06]
[1765322177390,9.84532106,137.86,137.83,61.68]
[1765322177592,3.27,137.85,137.83,61.68]
[1765322178183,9.7985,137.85,137.83,61.68]
[1765322178795,3.27,137.84,137.8,3.06]
[1765322179991,6.5293,137.83,137.8,3.06]
[1765322180197,0.05203219,137.83,137.8,3.06]
[1765322181194,6.5298,137.82,137.8,3.06]
[1765322181497,3.32203219,137.83,137.76,3.06]
[1765322181707,0.05184318,137.81,137.76,3.06]
[1765322182602,6.58204318,137.81,137.76,3.06]
[1765322183595,0.05184318,137.81,137.76,3.06]
[1765322184192,0.05184318,137.81,137.76,65.06]
[1765322184502,0.05184318,137.81,137.77,3.06]
[1765322191104,0.05184318,137.81,137.77,9.592]
[1765322191298,0.05184318,137.81,137.78,3.31]
[1765322191709,3.13184318,137.81,137.78,3.31]
[1765322191905,3.13184318,137.81,137.76,3.31]
[1765322193115,9.66204318,137.81,137.76,3.31]
[1765322193617,0.05184318,137.81,137.78,3.31]
[1765322194209,0.05184318,137.81,137.79,3.31]
[1765322194724,0.05184318,137.81,137.8,3.31]
[1765322195313,0.05184318,137.81,137.79,3.31]
[1765322195919,3.13184318,137.81,137.78,3.31]
[1765322196422,0.05184318,137.81,137.78,3.31]
[1765322197011,0.05184318,137.81,137.78,9.8415]
[1765322197219,0.05184318,137.81,137.79,3.31]
[1765322198217,0.05184318,137.81,137.79,9.841]
[1765322198517,0.05184318,137.81,137.8,3.31]
[1765322198915,0.05184318,137.81,137.8,9.8406]
[1765322199117,0.05184318,137.81,137.8,3.31]
[1765322205425,0.05184318,137.81,137.8,9.8406]
[1765322205727,9.6083,137.86,137.81,3.31]
[1765322206218,6.5283,137.85,137.82,3.31]
[1765322206417,9.6083,137.85,137.82,3.31]
[1765322206718,9.65418317,137.85,137.82,3.3573697]
[1765322207319,3.08,137.83,137.77,3.31]
[1765322208116,3.08,137.83,137.78,3.31]
[1765322208422,0.0502257,137.82,137.78,3.31]
[1765322208727,6.5800257,137.82,137.79,3.31]
[1765322209020,9.6600257,137.82,137.79,3.31]
[1765322209828,3.1302257,137.82,137.79,3.31]
[1765322210221,3.1302257,137.82,137.76,3.31]
[1765322210424,3.08,137.81,137.76,3.31]
[1765322210619,9.6112,137.79,137.76,3.31]
[1765322210823,9.66388069,137.79,137.76,3.31]
[1765322211129,6.58388069,137.79,137.76,3.31]
[1765322211725,0.05268069,137.79,137.76,3.31]
[1765322216231,0.05268069,137.79,137.72,3.42854486]
[1765322216232,3.08,137.75,137.72,3.42854486]
[1765322216432,3.08,137.73,137.72,3.42854486]
[1765322217036,6.5337,137.74,137.73,3.31]
[1765322217226,0.05050267,137.75,137.73,3.31]
[1765322217431,6.58350267,137.75,137.73,3.31]
[1765322217634,9.66350267,137.75,137.72,3.42854486]
[1765322217932,9.66350267,137.75,137.72,6.73854486]
[1765322218740,6.5336,137.74,137.72,6.73854486]
[1765322218935,0.05050267,137.75,137.73,3.31]
[1765322219938,6.58350267,137.75,137.73,3.31]
[1765322220334,0.05050267,137.75,137.73,3.31]
[1765322227043,0.05050267,137.75,137.73,9.8439]
[1765322227242,0.00050267,137.75,137.74,3.35]
[1765322227445,13.74331575,137.82,137.74,3.35]
[1765322227648,3.24,137.82,137.74,3.35]
[1765322227949,3.24,137.82,137.76,3.35]
[1765322228445,0.0498335,137.8,137.78,3.39900307]
[1765322229249,3.1298335,137.8,137.78,0.04900307]
[1765322229449,0.0498335,137.8,137.78,3.14900307]
[1765322231542,0.0498335,137.8,137.79,3.1]
[1765322232247,0.0498335,137.8,137.78,3.14900307]
[1765322233557,0.0498335,137.8,137.78,0.04900307]
[1765322233558,3.1298335,137.8,137.78,0.04900307]
[1765322234546,9.6605335,137.8,137.78,0.04900307]
[1765322235047,3.08,137.79,137.73,61.7]
[1765322235246,3.08,137.74,137.72,3.42854486]
[1765322236150,0.05048594,137.74,137.72,3.42854486]
[1765322236538,3.13048594,137.74,137.72,3.42854486]
[1765322238255,3.08,137.73,137.72,3.42854486]
[1765322238456,0.05048594,137.74,137.72,3.42854486]
[1765322238647,3.13048594,137.74,137.72,3.42854486]
[1765322240455,9.66418594,137.74,137.72,3.42854486]
[1765322241554,0.05048594,137.74,137.73,3.1]
[1765322244259,6.532,137.78,137.73,3.1]
[1765322244657,101.575,137.82,137.73,3.1]
[1765322244658,3.08,137.82,137.73,3.1]
[1765322244860,3.08,137.8,137.74,61.72]
[1765322245058,3.08,137.8,137.74,64.82]
[1765322245260,0.04910082,137.78,137.76,0.04730519]
[1765322246560,6.58070082,137.78,137.76,0.04730519]
[1765322246861,6.58070082,137.78,137.76,3.14730519]
[1765322247360,3.08,137.77,137.76,0.04730519]
[1765322247558,3.08,137.75,137.72,3.42854486]
[1765322247956,3.08,137.75,137.72,65.14854486]
[1765322248169,6.5336,137.74,137.72,68.24854486]
[1765322248570,6.58238821,137.74,137.73,3.1]
[1765322248753,0.04878821,137.74,137.73,3.1]
[1765322250464,0.04878821,137.74,137.73,64.82]
[1765322250665,0.04878821,137.74,137.72,6.46854486]
[1765322252361,0.04878821,137.74,137.73,3.04]
[1765322259071,3.2,137.81,137.73,3.04]
[1765322259266,3.2,137.8,137.73,3.04]
[1765322259472,3.2,137.78,137.74,64.76]
[1765322259669,3.2,137.78,137.72,3.42854486]
[1765322259861,3.2,137.75,137.74,0.04751991]
[1765322260667,3.2,137.75,137.72,3.42854486]
[1765322260865,3.2,137.74,137.72,3.42854486]
[1765322261475,3.2,137.74,137.72,3.31774758]
[1765322262376,9.7336,137.74,137.72,3.31774758]
[1765322262769,3.2,137.73,137.72,3.31774758]
[1765322265486,3.2,137.73,137.66,3.04]
[1765322265487,0.93,137.7,137.66,3.04]
[1765322265678,0.05207876,137.69,137.66,64.76]
[1765322265874,0.05207876,137.69,137.67,3.04]
[1765322267178,6.58807876,137.69,137.67,3.04]
[1765322269380,7.4664,137.68,137.64,3.04]
[1765322269582,6.5364,137.68,137.65,3.04]
[1765322273285,6.5369,137.67,137.65,3.04]
[1765322273692,6.5369,137.67,137.61,7.80343782]
[1765322273693,0.93,137.67,137.62,3.04]
[1765322273887,0.98558689,137.66,137.63,3.04]
[1765322274087,0.05558689,137.66,137.63,3.04]
[1765322274492,6.59298689,137.66,137.63,3.04]
[1765322275090,7.4682,137.65,137.61,3.04]
[1765322275292,7.4682,137.65,137.62,3.04]
[1765322275490,6.5382,137.65,137.62,3.04]
[1765322275691,0.98558689,137.66,137.62,3.04]
[1765322276198,0.05558689,137.66,137.62,3.04]
[1765322277787,0.05558689,137.66,137.63,3.04]
[1765322278396,0.93,137.71,137.64,3.04]
[1765322279307,0.04819683,137.69,137.67,3.08]
[1765322279602,6.58409683,137.69,137.67,3.08]
[1765322281007,7.5264,137.68,137.66,0.04940995]
[1765322281206,6.5364,137.68,137.66,3.12940995]
[1765322281914,0.04819683,137.69,137.66,3.12940995]
[1765322282415,6.58419683,137.69,137.66,3.12940995]
[1765322284912,0.04819683,137.69,137.66,3.12940995]
[1765322285413,6.5342,137.73,137.67,3.08]
[1765322285615,2.57816368,137.79,137.71,3.08]
[1765322285919,3.61816368,137.79,137.73,3.08]
[1765322286314,102.6508,137.77,137.73,3.08]
[1765322286619,1.09313918,137.76,137.74,0.05327893]
[1765322286917,6.5331,137.75,137.74,0.05327893]
[1765322288716,0.05313918,137.76,137.74,3.13327893]
[1765322288914,1.09313918,137.76,137.74,0.05327893]
[1765322289615,3.61816368,137.75,137.74,0.05327893]
[1765322289920,1.03,137.71,137.68,40.16]
[1765322290314,1.03,137.71,137.68,43.24]
[1765322290713,0.05045631,137.71,137.69,3.08]
[1765322291717,0.05045631,137.71,137.68,40.20603226]
[1765322291920,0.05045631,137.71,137.68,43.51603226]
[1765322292417,1.08045631,137.71,137.68,43.51603226]
[1765322293910,0.05045631,137.71,137.69,3.31]
[1765322298027,2.57816368,137.76,137.69,3.31]
[1765322298225,3.60816368,137.74,137.69,3.31]
[1765322299022,6.57971381,137.73,137.7,3.35895337]
[1765322302426,0.04571381,137.73,137.7,3.35895337]
[1765322304731,1.03,137.72,137.7,0.04895337]
[1765322305127,3.60816368,137.72,137.7,0.04895337]
[1765322305441,1.03,137.71,137.7,0.04895337]
[1765322305739,7.5649,137.71,137.7,0.04895337]
[1765322306127,0.04571381,137.73,137.7,3.35895337]
[1765322306331,6.57971381,137.73,137.7,3.35895337]
[1765322307241,0.04571381,137.73,137.7,3.35895337]
[1765322308441,6.57971381,137.73,137.7,3.35895337]
[1765322309443,1.03,137.72,137.7,0.04895337]
[1765322309639,3.60816368,137.72,137.7,0.04895337]
[1765322309943,1.03,137.71,137.7,0.04895337]
[1765322310135,7.5649,137.71,137.7,0.04895337]
[1765322310928,6.5349,137.71,137.7,0.04895337]
[1765322314847,0.04571381,137.73,137.7,3.08895337]
[1765322317646,3.60816368,137.79,137.71,3.04]
[1765322317841,10.44322187,137.81,137.73,3.04]
[1765322318041,10.44418862,137.83,137.75,3.04]
[1765322318247,6.5298,137.82,137.75,9.5726]
[1765322318543,6.5298,137.82,137.76,3.04]
[1765322318739,0.05579,137.8,137.78,3.09449278]
[1765322319742,1.13579,137.8,137.78,0.05449278]
[1765322320341,0.05579,137.8,137.78,0.05449278]
[1765322323751,0.05579,137.8,137.78,3.09449278]
[1765322326038,0.05579,137.8,137.78,9.62589278]
[1765322326253,0.05579,137.8,137.79,3.04]
[1765322328947,3.65816368,137.82,137.78,3.09449278]
[1765322329543,1.08,137.8,137.78,0.05449278]
[1765322329749,7.6103,137.81,137.78,3.09449278]
[1765322329947,7.66300925,137.81,137.78,3.09449278]
[1765322331248,1.13270925,137.81,137.78,3.09449278]
[1765322331453,0.05270925,137.81,137.78,3.09449278]
[1765322331755,108.23329879,137.91,137.81,3.04]
[1765322331756,8.68109246,137.89,137.81,3.04]
[1765322331959,3.70816368,137.9,137.85,3.04]
[1765322332446,9.10356368,137.92,137.87,3.04]
[1765322332752,0.05372771,137.91,137.88,3.08604585]
[1765322332954,7.70922771,137.91,137.88,3.08604585]
[1765322333149,1.13,137.88,137.81,3.04]
[1765322333350,1.13,137.84,137.8,3.04]
[1765322333653,3.70816368,137.83,137.8,3.04]
[1765322333847,2.57816368,137.83,137.8,3.04]
[1765322334152,2.62928278,137.83,137.8,3.09457385]
[1765322334355,0.0511191,137.83,137.8,3.09457385]
[1765322335240,0.0511191,137.83,137.8,9.62507385]
[1765322335442,0.0511191,137.83,137.81,3.04]
[1765322336850,1.13,137.89,137.81,3.04]
[1765322337153,1.13,137.89,137.82,3.04]
[1765322337346,1.13,137.89,137.84,3.04]
[1765322337853,6.5237,137.95,137.87,3.04]
[1765322338046,102.6043,137.96,137.87,3.04]
[1765322338247,1.13,137.96,137.88,3.04]
[1765322338555,7.6534,137.96,137.9,3.04]
[1765322338940,0.0521569,137.94,137.92,3.09185419]
[1765322339145,0.05495834,137.94,137.92,3.09185419]
[1765322341757,0.05495834,137.94,137.92,9.61665419]
[1765322341958,0.05495834,137.94,137.93,3.08]
[1765322343747,6.5213,138.0,137.93,3.08]
[1765322343954,1.22,138.02,137.95,3.08]
[1765322344956,1.22,137.99,137.97,0.05569119]
[1765322345864,7.742,137.99,137.97,0.05569119]
[1765322346363,1.27189508,138.0,137.97,0.05569119]
[1765322347164,7.79329508,138.0,137.97,0.05569119]
[1765322347363,1.22,137.99,137.97,0.05569119]
[1765322347563,7.79329508,138.0,137.97,0.05569119]
[1765322350062,1.22,137.98,137.97,0.05569119]
[1765322351064,0.05189508,138.0,137.97,3.33569119]
[1765322351567,0.05189508,138.0,137.99,3.28]
[1765322351763,1.22,138.05,137.99,3.28]
[1765322351957,101.3557,138.12,138.01,3.28]
[1765322352162,1.22,138.08,137.93,101.49]
[1765322352362,102.6053,138.08,137.98,3.28]
[1765322352567,1.22,138.07,138.0,3.28]
[1765322352862,6.56795634,138.05,138.02,0.05393102]
[1765322353066,7.78795634,138.05,138.02,0.05393102]
[1765322353769,6.5195,138.04,138.02,0.05393102]
[1765322353962,7.7395,138.04,138.02,0.05393102]
[1765322354159,1.22,138.03,138.02,0.05393102]
[1765322356261,1.22,138.02,137.95,3.28]
[1765322356464,1.22,138.02,137.95,64.92]
[1765322357160,0.05485269,138.0,137.97,0.04704114]
[1765322357373,1.27485269,138.0,137.97,0.04704114]
[1765322357870,1.27485269,138.0,137.97,3.32704114]
[1765322358371,7.79625269,138.0,137.97,0.04704114]
[1765322358567,1.22,137.99,137.97,0.04704114]
[1765322359071,1.22,137.98,137.97,0.04704114]
[1765322361674,7.7418,137.99,137.97,0.04704114]
[1765322363473,6.5218,137.99,137.97,3.32704114]
[1765322363684,0.05485269,138.0,137.97,3.32704114]
[1765322364274,0.05485269,138.0,137.99,3.28]
[1765322369684,1.28,138.08,138.0,3.13]
[1765322370267,1.28,138.08,138.01,3.13]
[1765322370673,0.05515546,138.06,138.04,3.13]
[1765322371276,7.85355546,138.06,138.03,0.05309454]
[1765322372079,7.85355546,138.06,138.03,3.18309454]
[1765322375985,1.28,138.04,138.03,0.05309454]
[1765322376775,0.05515546,138.06,138.03,3.18309454]
[1765322378187,0.05515546,138.06,138.04,3.13]
[1765322378889,0.05515546,138.06,138.05,3.13]
[1765322379104,1.28,138.13,138.05,3.13]
[1765322379582,6.5161,138.11,138.07,3.13]
[1765322379973,0.04872744,138.1,138.08,3.18314656]
[1765322380179,1.37872744,138.1,138.08,0.05314656]
[1765322381478,7.8469,138.09,138.08,0.05314656]
[1765322382281,7.8476,138.08,138.02,64.73]
[1765322383290,0.04643675,138.06,138.04,0.04703776]
[1765322383881,0.04643675,138.06,138.04,3.17703776]
[1765322386985,0.04643675,138.06,138.05,3.13]
[1765322387280,0.04643675,138.06,138.04,6.56633776]
[1765322387482,1.33,138.13,138.06,3.13]
[1765322387694,1.38,138.11,138.06,3.13]
[1765322388487,0.05136933,138.1,138.07,3.18362708]
[1765322389689,1.43136933,138.1,138.07,3.18362708]
[1765322390192,1.38,138.08,138.07,0.05362708]
[1765322394088,7.8971,138.09,138.07,0.05362708]
[1765322396502,6.5171,138.09,138.07,3.32362708]
[1765322397000,1.38,138.08,138.07,0.05362708]
[1765322397394,7.8971,138.09,138.07,0.05362708]
[1765322398100,1.38,138.08,138.07,0.05362708]
[1765322398594,0.05136933,138.1,138.07,3.32362708]
[1765322399897,1.43136933,138.1,138.07,3.32362708]
[1765322400098,7.94786933,138.1,138.07,3.32362708]
[1765322400399,1.38,138.09,138.07,0.05362708]
[1765322400699,1.38,138.08,138.07,0.05362708]
[1765322400897,0.05136933,138.1,138.07,3.34362708]
[1765322401998,0.05136933,138.1,138.08,3.29]
[1765322404395,0.05136933,138.1,138.09,3.29]
[1765322405007,0.05136933,138.1,138.09,9.8069]
[1765322407308,6.5146,138.14,138.11,3.29]
[1765322407911,1.38,138.12,138.08,9.8069]
[1765322408209,1.38,138.12,138.09,3.29]
[1765322408508,0.04982368,138.12,138.09,3.34341863]
[1765322410414,0.04982368,138.12,138.09,9.86031863]
[1765322410702,5.33196802,138.18,138.1,3.29]
[1765322410913,1.43,138.16,138.1,3.29]
[1765322411210,1.43,138.16,138.12,3.29]
[1765322411606,1.43,138.13,138.06,64.85]
[1765322411804,1.48027762,138.11,138.08,3.34081731]
[1765322420104,4.04333212,138.11,138.08,0.05081731]
[1765322420306,3.9930545,138.09,138.08,0.05081731]
[1765322422708,1.48027762,138.11,138.08,3.37081731]
[1765322423118,0.05027762,138.11,138.08,3.37081731]
[1765322423613,0.05027762,138.11,138.08,9.88801731]
[1765322423812,0.05027762,138.11,138.09,3.32]
[1765322425113,1.43,138.1,138.06,3.32]
[1765322425515,1.43,138.09,138.06,3.32]
[1765322425716,3.9930545,138.11,138.06,3.32]
[1765322426015,1.43,138.1,138.06,3.32]
[1765322426222,0.05564965,138.09,138.07,0.05325819]
[1765322426415,0.05564965,138.09,138.07,3.37325819]
[1765322428521,1.48564965,138.09,138.07,0.05325819]
[1765322429525,8.00264965,138.09,138.07,0.05325819]
[1765322430227,6.57264965,138.09,138.07,3.16325819]
[1765322431113,0.05564965,138.09,138.07,3.16325819]
[1765322432021,6.5154,138.13,138.07,3.16325819]
[1765322432326,6.5154,138.13,138.09,3.11]
[1765322433025,0.05142302,138.12,138.09,3.11]
[1765322437021,0.05142302,138.12,138.09,64.67]
[1765322437222,0.05142302,138.12,138.1,3.11]
[1765322446532,0.05142302,138.12,138.11,3.11]
[1765322450139,0.05142302,138.12,138.11,9.626]
[1765322450335,0.05142302,138.12,138.11,3.11]
[1765322450639,0.05142302,138.12,138.1,3.16070925]
[1765322451428,0.05142302,138.12,138.1,9.67710925]
[1765322455241,7.99702302,138.12,138.1,0.05070925]
[1765322456537,1.43,138.11,138.1,0.05070925]
[1765322457244,7.99702302,138.12,138.1,0.05070925]
[1765322459238,7.99702302,138.12,138.1,3.15070925]
[1765322461346,7.946,138.11,138.1,0.05070925]
[1765322461648,1.48142302,138.12,138.1,0.05070925]
[1765322462239,0.05142302,138.12,138.1,3.15070925]
[1765322463544,0.05142302,138.12,138.1,9.66710925]
[1765322463849,0.05142302,138.12,138.11,3.1]
[1765322468447,0.05142302,138.12,138.11,9.616]
[1765322469953,0.00142302,138.12,138.11,9.616]
[1765322470153,7.9931,138.18,138.14,3.28]
[1765322470347,1.48,138.17,138.14,3.28]
[1765322470751,6.5137,138.16,138.14,3.28]
[1765322471051,1.48,138.15,138.14,0.05519958]
[1765322472440,7.9941,138.15,138.14,0.05519958]
[1765322473351,13.33589277,138.15,138.14,0.05519958]
[1765322473751,6.5162,138.11,138.08,64.84]
[1765322474057,7.9962,138.11,138.08,64.84]
[1765322474247,7.9962,138.11,138.09,3.28]
[1765322474854,8.04993743,138.11,138.09,3.32752786]
[1765322475648,7.9964,138.1,138.09,0.04752786]
[1765322476549,6.5164,138.1,138.09,0.04752786]
[1765322478554,8.04983743,138.11,138.09,0.04752786]
[1765322479852,6.5164,138.1,138.09,0.04752786]
[1765322480656,6.5179,138.07,138.04,3.28]
[1765322480858,1.48,138.07,138.04,3.28]
[1765322481057,1.48,138.07,138.01,3.28]
[1765322481760,0.04631124,138.05,138.03,0.05361483]
[1765322482463,0.04631124,138.05,138.03,3.33361483]
[1765322487065,0.04631124,138.05,138.03,9.85331483]
[1765322487266,1.48,138.11,138.05,3.28]
[1765322487661,6.5169,138.1,138.07,3.28]
[1765322488273,6.57193548,138.1,138.07,3.32870635]
[1765322490765,0.05503548,138.1,138.07,9.84660635]
[1765322490967,0.05503548,138.1,138.08,3.24]
[1765322492268,0.05503548,138.1,138.08,9.7573]
[1765322492461,0.05503548,138.1,138.09,3.24]
[1765322493767,1.53503548,138.1,138.07,3.28870635]
[1765322495172,7.9969,138.09,138.07,0.04870635]
[1765322495372,1.48,138.08,138.07,0.04870635]
[1765322495974,7.9974,138.08,138.07,0.04870635]
[1765322499991,6.5174,138.08,138.07,3.28870635]
[1765322500277,6.5174,138.08,138.07,0.04870635]
[1765322501178,7.9974,138.08,138.07,0.04870635]
[1765322501572,101.386,138.08,138.0,3.24]
[1765322501780,105.38086622,138.09,138.0,3.24]
[1765322501781,1.48,138.07,138.0,3.24]
[1765322502678,0.04886438,138.05,138.03,3.24]
[1765322504482,8.04766438,138.05,138.03,3.24]
[1765322504684,1.52886438,138.05,138.02,3.29051552]
[1765322505581,6.5193,138.04,138.02,3.29051552]
[1765322508786,0.04886438,138.05,138.02,3.29051552]
[1765322508985,1.52886438,138.05,138.02,3.29051552]
[1765322510485,8.04786438,138.05,138.02,3.29051552]
[1765322513097,6.56786438,138.05,138.02,3.29051552]
[1765322513592,0.04886438,138.05,138.02,3.29051552]
[1765322514292,0.04886438,138.05,138.04,3.24]
[1765322515288,0.04886438,138.05,138.04,9.7593]
[1765322516595,164.4701,138.12,138.06,3.24]
[1765322516989,1.53,138.12,138.06,3.24]
[1765322517682,1.58161092,138.1,138.08,0.04918241]
[1765322518094,1.58161092,138.1,138.08,3.28918241]
[1765322518593,8.09821092,138.1,138.08,3.28918241]
[1765322519194,8.09821092,138.1,138.08,0.04918241]
[1765322521788,8.0469,138.09,138.08,0.04918241]
[1765322527805,6.5169,138.09,138.08,0.04918241]
[1765322528006,10.66264766,138.1,138.08,0.04918241]
[1765322528207,8.09831092,138.1,138.08,0.04918241]
[1765322528701,8.09831092,138.1,138.08,3.23918241]
[1765322529502,0.05161092,138.1,138.08,3.23918241]
[1765322530898,0.05161092,138.1,138.08,9.75648241]
[1765322531104,0.05161092,138.1,138.09,3.32]
[1765322535011,109.22054088,138.15,138.1,3.32]
[1765322535012,6.515,138.13,138.1,3.32]
[1765322536003,6.56866638,138.13,138.1,3.37526379]